Cogmind - Beta 14 @@@ ROGUE MODE // 2024.08.22 @ 22:04:05 Player: AppleSource Result: Destroyed by H-61 Shepherd with Heavy Assault Cannon Performance ------------- Evolutions (4) 2000 Regions Visited (7) 1400 Robots Destroyed (125) 625 Value Destroyed (3308) 3308 Prototype IDs (29) 580 Alien Tech Used (0) 0 Bonus (765) 765 TOTAL SCORE: 8678 Bonus ------- High Alert Combat Kills 435 Follower Combat Kills 44 Aligned with FarCom 300 Friendly Fire -14 Cogmind --------- Core Integrity 0/850 Matter 157/300 Energy 99/100 System Corruption 1% Temperature Cool (0) Movement Core (50) Location -6/Factory Parts ------- > --- POWER (1) -------- (None) > --- PROPULSION (5) --- (None) > --- UTILITY (7) ------ Advanced ECM Suite Hacking Suite Hacking Suite > --- WEAPON (2) ------- (None) > --- INVENTORY (5) ---- Light Deuterium Engine Field Lobotomy Kit (2) Power Maul Axe Peak State ------------ > --- POWER ------------ F-cell Engine > --- PROPULSION ------- Cesium-ion Thruster Improved VTOL Module Xenon Bombardment Thruster Xenon Bombardment Thruster Improved Cesium-ion Thruster > --- UTILITY ---------- Medium Storage Unit Weight Redist. System Microactuators Improved Light Armor Plating Hacking Suite Hacking Suite Hacking Suite > --- WEAPON ----------- Field Lobotomy Kit Axe > --- INVENTORY -------- Fission Core Cesium-ion Thruster Trap Scanner Hardened Medium Armor Plating Hacking Suite Minigun Minigun Power Maul [Rating: 60] Favorites ----------- Power Light Ion Engine Engine Light Ion Engine Power Core Light Nuclear Core Propulsion Light Treads Treads Light Treads Leg Titanium Leg Flight Unit Cesium-ion Thruster Utility Advanced Targeting Computer Device Structural Scanner Storage Medium Storage Unit Processor Advanced Targeting Computer Hackware Hacking Suite Protection Hardened Heavy Armor Plating Weapon Autogun Energy Gun Medium Laser Ballistic Gun Autogun Launcher Grenade Launcher Special Weapon Field Lobotomy Kit Impact Weapon Power Maul Slashing Weapon Axe Build | -11 -10 -10 -10 -9 -8 -7 -6 ------- Run | Yrd Mat Min Exi Min Mat Fac Fac Slots Evolved 8 | . . . . . 4 2 2 Power . | . . . . . . . . Propulsion 3 | . . . . . 1 1 1 Utility 5 | . . . . . 3 1 1 Weapon . | . . . . . . . . Parts Attached 113 | 6 4 6 1 . 45 23 28 Power 24 | 1 . 2 . . 8 9 4 Engine 16 | 1 . 2 . . 4 7 2 Core 8 | . . . . . 4 2 2 Reactor . | . . . . . . . . Propulsion 31 | 2 . 2 . . 14 7 6 Treads 10 | 2 . 2 . . 6 . . Leg 3 | . . . . . 3 . . Wheel . | . . . . . . . . Hover . | . . . . . . . . Flight 18 | . . . . . 5 7 6 Utility 24 | 1 2 . 1 . 8 5 7 Device 10 | . 1 . . . 2 2 5 Storage 5 | 1 1 . 1 . 2 . . Processor 2 | . . . . . 2 . . Hackware 4 | . . . . . . 2 2 Protection 3 | . . . . . 2 1 . Artifact . | . . . . . . . . Weapon 34 | 2 2 2 . . 15 2 11 Energy Gun 5 | 1 . . . . 2 . 2 Energy Cannon . | . . . . . . . . Ballistic Gun 13 | 1 2 2 . . 5 . 3 Ballistic Cannon . | . . . . . . . . Launcher 5 | . . . . . 2 . 3 Special Weapon 2 | . . . . . 1 . 1 Impact Weapon 2 | . . . . . . 1 1 Slashing Weapon 7 | . . . . . 5 1 1 Piercing Weapon . | . . . . . . . . Special Melee Weapon . | . . . . . . . . Unidentified Prototypes 6 | . . . . . 2 3 1 Parts Lost 37 | . . 5 . . 13 2 17 Power 7 | . . 1 . . 4 . 2 Propulsion 13 | . . 2 . . 4 1 6 Utility 9 | . . . . . 2 1 6 Weapon 8 | . . 2 . . 3 . 3 Highest Loss Streak 7 | . . 2 . . 2 1 7 To Critical Strikes . | . . . . . . . . Average Slot Usage (%) 87 | . 97 98 99 100 82 87 73 Engine 6 | . 14 12 14 14 4 3 3 Core 1 | . . . . . 4 . 1 Treads 15 | . 28 27 28 28 18 . . Leg 1 | . . . . . 2 . . Flight 9 | . . . . . 3 29 20 Device 5 | . 12 14 7 . 1 7 12 Storage 11 | . 14 14 20 28 10 7 2 Processor 7 | . . . . . 15 7 . Hackware 4 | . . . . . . 10 20 Protection 2 | . . . . . 4 2 2 Ballistic Gun 11 | . 17 28 28 28 8 . 2 Slashing Weapon 6 | . . . . . 6 14 2 Peak Build Rating 60 | 6 9 10 10 11 33 44 60 Average Rating 24 | 4 7 8 9 10 25 36 41 On Entrance 14 | . 6 9 9 10 11 23 44 Naked Turns . | . . . . . . . . Heaviest Build 48 | 11 20 20 24 24 48 24 38 Greatest Support 60 | 40 40 40 40 40 60 28 34 Greatest Overweight (x) 10 | 2 . . . . 10 2 2 Average Overweight (x) . | . . . . . . . . Largest Inventory Capacity 15 | 8 10 10 10 10 15 10 10 Average Capacity 10 | 7 9 10 10 10 11 10 7 Most Carried 14 | 1 6 8 7 9 14 10 10 Average Carried 7 | . 3 5 6 8 9 8 6 Final Capacity 10 | 8 10 10 10 10 10 10 5 Final Carried 10 | 1 6 6 7 9 8 10 4 Class Distribution -------------------- 43% | Mutant 26% | Scavenger-Mutant 15% | Hacker-Sprinter 10% | Sprinter 3% | Hacker-Mutant Dominant Class ---------------- Mutant | -10/Materials Mutant | -10/Mines Mutant | -10/Exiles Mutant | -9/Mines Scavenger-Mutant | -8/Materials Sprinter | -7/Factory Hacker-Sprinter | -6/Factory Resources | -11 -10 -10 -10 -9 -8 -7 -6 ----------- Run | Yrd Mat Min Exi Min Mat Fac Fac Matter Collected 2309 | 125 139 433 . 48 1117 215 232 Remotely . | . . . . . . . . Salvage Created 4912 | . 244 401 . 33 2685 1198 351 Parts 262 | . 17 21 . 7 142 63 12 Haulers Intercepted 6 | . 1 . . . 3 2 . Recyclers Shooed 4 | . . 1 . 1 2 . . Parts Field Recycled . | . . . . . . . . Retrieved Matter . | . . . . . . . . Parts Self-Destructed . | . . . . . . . . Prevented . | . . . . . . . . Kills | -11 -10 -10 -10 -9 -8 -7 -6 ------- Run | Yrd Mat Min Exi Min Mat Fac Fac Combat Hostiles Destroyed 90 | . 4 19 . 2 53 6 6 Melee 34 | . . . . . 28 6 . Guns 51 | . 4 19 . 2 23 . 3 AOE 3 | . . . . . 2 . 1 Classes Destroyed 18 | . 3 5 . 1 5 2 2 Worker 16 | . . 1 . . 5 10 . Builder 3 | . . . . 1 2 . . Tunneler 1 | . . . . . . 1 . Hauler 6 | . 1 . . . 3 2 . Recycler 10 | . . 1 . . 3 6 . Mechanic 1 | . . . . . . . 1 Operator 2 | . . . . . 1 1 . Watcher 7 | . 1 . . . 3 3 . Swarmer 22 | . . 6 . 2 14 . . Grunt 42 | . 4 4 . . 27 3 4 Brawler 1 | . . . . . . . 1 Duelist 2 | . . . . . 2 . . Protector 1 | . . . . . 1 . . Sentry 9 | . . . . . 8 1 . Demolisher 2 | . . 2 . . . . . Specialist 1 | . . . . . 1 . . Programmer 3 | . . . . . . 2 1 Assembled 7 | . . 7 . . . . . Best Kill Streak 8 | . 2 3 . 2 8 4 4 Combat Bots Only 7 | . 2 3 . 2 7 1 3 Max Kills in Single Turn 3 | . 1 1 . 1 3 1 2 Gunslinging . | . . . . . . . . Exploded 1 | . . . . . 1 . 1 Melee 1 | . . . . . 1 1 . Uniques/NPCs Destroyed . | . . . . . . . . Combat | -11 -10 -10 -10 -9 -8 -7 -6 -------- Run | Yrd Mat Min Exi Min Mat Fac Fac Hostile Shots Fired 623 | . 17 68 . 2 249 59 228 Missed 215 | . 4 15 . . 67 26 103 Damage Taken 6164 | . 182 851 . 17 2736 447 1931 Core 1393 | . 43 66 . . 300 132 852 Absorbed by Shields 145 | . . . . . . . 145 Redirected to Shielding 53 | . . . . . 53 . . Regen/Repaired (Parts) 188 | . . . . . 139 49 . Core Remaining (%) 70 | 100 . . . 56 45 81 . Volleys Fired 198 | . 19 49 . 3 99 . 28 Largest 2 | . 2 2 . 2 2 . 2 Hottest 73 | . 70 46 . 46 73 . 55 Shots Fired 370 | . 38 97 . 6 180 . 49 Gun 352 | . 38 97 . 6 165 . 46 Cannon . | . . . . . . . . Launcher 15 | . . . . . 13 . 2 Special 3 | . . . . . 2 . 1 Kinetic 315 | . 20 97 . 6 150 . 42 Thermal 18 | . 18 . . . . . . Explosive 13 | . . . . . 13 . . Electromagnetic 21 | . . . . . 15 . 6 Robot Hit Streak 33 | . 4 8 . 9 33 . 9 Robot Miss Streak 6 | . 2 5 . 1 4 . 6 Penetration Max . | . . . . . . . . Secondary Targets 4 | . . . . . 4 . . Max Gunslinging Chain 1 | . . . . . 1 . . Shots Hit Robots 379 | . 25 57 . 4 203 57 33 Core Hits 198 | . 17 32 . 2 108 24 15 Critical Kills . | . . . . . . . . Critical Parts Destroyed 2 | . . . . . 1 . 1 Critical Strikes 16 | . . . . . 9 6 1 Destroy 1 | . . . . . 1 . . Corrupt 2 | . . . . . 2 . . Smash 1 | . . . . . . . 1 Sever 12 | . . . . . 6 6 . Melee Attacks 185 | . . . . . 99 76 10 Impact 8 | . . . . . . . 8 Slashing 177 | . . . . . 99 76 2 Piercing . | . . . . . . . . Sneak Attacks 39 | . . . . . 15 24 . Combat Hostiles 10 | . . . . . 7 3 . Follow-up Attacks 20 | . . . . . 13 7 . Damage Inflicted 10632 | . 264 919 . 75 5298 3034 1042 Guns 3635 | . 260 888 . 63 1973 . 451 Cannons . | . . . . . . . . Explosions 668 | . . . . . 423 . 245 Melee 6191 | . . . . . 2832 3034 325 Ramming 138 | . 4 31 . 12 70 . 21 Kinetic 3292 | . 112 888 . 63 1803 . 426 Thermal 148 | . 148 . . . . . . Explosive 634 | . . . . . 423 . 211 Electromagnetic 229 | . . . . . 170 . 59 Impact 325 | . . . . . . . 325 Slashing 5866 | . . . . . 2832 3034 . Piercing . | . . . . . . . . Highest Corruption 9 | . . . . . . 9 1 Average Corruption 3 | . . . . . . 7 1 Corruption Purged . | . . . . . . . . Corruption Blocked . | . . . . . . . . Effects 10 | . . . . . . 7 3 Message Errors 2 | . . . . . . 2 . Energy Discharges 2 | . . . . . . 2 . Parts Rejected 2 | . . . . . . 1 1 Parts Fused 1 | . . . . . . 1 . Data Loss (minor) 2 | . . . . . . 1 1 Data Loss (major) 1 | . . . . . . . 1 Overload Shots . | . . . . . . . . Overflow Damage 727 | . . . . . 234 376 117 Projectiles . | . . . . . . . . Explosions 59 | . . . . . 29 . 30 Melee 668 | . . . . . 205 376 87 Knockbacks 5 | . . . . . 1 . 4 Impact 5 | . . . . . 1 . 4 Kinetic . | . . . . . . . . Secondary . | . . . . . . . . Self-Inflicted Damage 226 | . . . . . 54 . 172 Shots 5 | . . . . . 2 . 3 Rammed 25 | . 3 9 . 3 7 . 3 Targets Rammed 29 | . 3 11 . 4 8 . 3 Kicked . | . . . . . . . . Crushed 4 | . . 2 . 1 1 . . Highest Temperature 198 | . 135 34 . 12 198 9 56 Average Temperature 30 | . 50 8 . 6 37 8 21 Received Heat Transfer 1641 | . 105 130 . . 1026 114 266 Siege Activations . | . . . . . . . . Robots Corrupted 2 | . . . . . . . 2 Combat Hostiles 2 | . . . . . . . 2 Parts Fried 4 | . . . . . . . 4 Impact Corruptions 5 | . . . . . . . 5 Robots Melted . | . . . . . . . . Combat Hostiles . | . . . . . . . . Parts Melted 1 | . 1 . . . . . . Heat Transferred 444 | . 444 . . . . . . Parts Sabotaged . | . . . . . . . . Parts Stolen . | . . . . . . . . Parts Stripped . | . . . . . . . . Power Chain Reactions . | . . . . . . . . Alert | -11 -10 -10 -10 -9 -8 -7 -6 ------- Run | Yrd Mat Min Exi Min Mat Fac Fac Peak Influence 1003 | . 152 292 . 50 1003 475 361 Initial 455 | . . 2 . . 1 455 155 Average 303 | . 48 120 . 28 458 296 244 Maximum Alert Level 3 | . . 1 . . 3 2 1 Low Security (%) 37 | 100 100 81 . 100 24 5 26 Level 1 30 | . . 18 . . 13 72 73 Level 2 21 | . . . . . 40 21 . Level 3 9 | . . . . . 21 . . Level 4 . | . . . . . . . . Level 5 . | . . . . . . . . High Security . | . . . . . . . . Max Security . | . . . . . . . . Sterilizations 1 | . . . . . 1 . . Squads Dispatched 18 | . 1 . . . 9 4 4 Investigation 2 | . . . . . . 2 . Extermination 3 | . . . . . . 2 1 Reinforcement 10 | . 1 . . . 6 . 3 Assault 1 | . . . . . 1 . . Garrison 2 | . . . . . 2 . . Intercept . | . . . . . . . . Searches Triggered . | . . . . . . . . Construction Impeded 2 | . . . . . 1 . 1 Haulers Reinforced . | . . . . . . . . Active Scanning Responses . | . . . . . . . . Cargo Convoy Interrupts 1 | . . . . . . . 1 Stealth | -11 -10 -10 -10 -9 -8 -7 -6 --------- Run | Yrd Mat Min Exi Min Mat Fac Fac Distress Signals 8 | . . . . . 6 1 1 Communications Jammed . | . . . . . . . . Distress Signals . | . . . . . . . . Times Spotted 156 | . 9 18 . 3 73 12 41 Peak Tracking Total 8 | . 2 3 . 3 5 3 8 Tactical Retreats 22 | . 1 1 . . 8 1 11 Traps | -11 -10 -10 -10 -9 -8 -7 -6 ------- Run | Yrd Mat Min Exi Min Mat Fac Fac Traps Triggered 7 | . . . . . 2 . 5 Indirectly . | . . . . . . . . Trap Hack Attempts . | . . . . . . . . Triggered . | . . . . . . . . Disarmed . | . . . . . . . . Reprogrammed . | . . . . . . . . Reused . | . . . . . . . . Traps Extracted . | . . . . . . . . Installed . | . . . . . . . . Triggered . | . . . . . . . . Machines | -11 -10 -10 -10 -9 -8 -7 -6 ---------- Run | Yrd Mat Min Exi Min Mat Fac Fac Machines Disabled 6 | . . . . 1 1 . 4 Max in Single Turn 3 | . . . . . 1 . 3 Machines Repaired . | . . . . . . . . Machines Dismantled . | . . . . . . . . Machines Sabotaged . | . . . . . . . . Overloaded Fab Kills . | . . . . . . . . Hacking | -11 -10 -10 -10 -9 -8 -7 -6 --------- Run | Yrd Mat Min Exi Min Mat Fac Fac Machines Accessed 14 | . . . 1 . 6 5 2 Terminals 7 | . . . . . 4 1 2 Fabricators 2 | . . . . . . 2 . Repair Stations 2 | . . . . . 1 1 . Recycling Units 1 | . . . . . . 1 . Scanalyzers 1 | . . . . . 1 . . Garrison Access . | . . . . . . . . Total Hacks 32 | . . . 1 . 17 10 4 Successful 18 | . . . 1 . 7 8 2 Failed 14 | . . . . . 10 2 2 Catastrophic 1 | . . . . . 1 . . Database Lockouts . | . . . . . . . . Manual 6 | . . . 1 . 5 . . Terminals 18 | . . . . . 12 2 4 Fabricators 4 | . . . . . . 4 . Repair Stations 4 | . . . . . 2 2 . Recycling Units 2 | . . . . . . 2 . Scanalyzers 3 | . . . . . 3 . . Garrison Access . | . . . . . . . . Terminal Hacks 7 | . . . 1 . 3 1 2 Part Schematic 1 | . . . . . 1 . . Open DSF 1 | . . . . . . . 1 Branch Access Points 2 | . . . . . 1 . 1 Alert Level 1 | . . . . . 1 . . Hauler Manifests 1 | . . . . . . 1 . Derelict Proto ID Bank 1 | . . . 1 . . . . Fabricator Hacks 4 | . . . . . . 4 . Load Schematic 2 | . . . . . . 2 . Build 2 | . . . . . . 2 . Repair Station Hacks 4 | . . . . . 2 2 . Scan Component 2 | . . . . . 1 1 . Repair 2 | . . . . . 1 1 . Recycling Unit Hacks 1 | . . . . . . 1 . Report Inventory 1 | . . . . . . 1 . Scanalyzer 2 | . . . . . 2 . . Insert Component 1 | . . . . . 1 . . Analyze 1 | . . . . . 1 . . Garrison Access Hacks . | . . . . . . . . Unauthorized Hacks . | . . . . . . . . Terminals . | . . . . . . . . Fabricators . | . . . . . . . . Repair Stations . | . . . . . . . . Recycling Units . | . . . . . . . . Scanalyzers . | . . . . . . . . Garrison Access . | . . . . . . . . Data Cores Recovered 1 | . . . . . 1 . . Used . | . . . . . . . . Hacking Detections 6 | . . . . . 2 3 1 Full Trace Events 2 | . . . . . . 2 . Feedback Events . | . . . . . . . . Feedback Blocked . | . . . . . . . . Robot Schematics Acquired . | . . . . . . . . Robots Built . | . . . . . . . . Authchips . | . . . . . . . . Time . | . . . . . . . . Total Robot Build Rating . | . . . . . . . . Part Schematics Acquired 2 | . . . . . 2 . . Parts Built 2 | . . . . . . 2 . Authchips . | . . . . . . . . Time 109 | . . . . . . 109 . Total Part Build Rating 6 | . . . . . . 6 . Parts Repaired 2 | . . . . . 1 1 . Time 64 | . . . . . 26 38 . Parts Recycled . | . . . . . . . . Recycled Matter . | . . . . . . . . Retrieved Matter . | . . . . . . . . Retrieved Components . | . . . . . . . . Parts Scanalyzed 1 | . . . . . 1 . . Part Schematics Acquired 1 | . . . . . 1 . . Parts Damaged . | . . . . . . . . Bothacking | -11 -10 -10 -10 -9 -8 -7 -6 ------------ Run | Yrd Mat Min Exi Min Mat Fac Fac Used RIF Installer . | . . . . . . . . Robots Hacked . | . . . . . . . . Non-combat . | . . . . . . . . Combat . | . . . . . . . . Robot Hacks Applied . | . . . . . . . . Relay Couplers Released . | . . . . . . . . Fabnet Peak Effective % . | . . . . . . . . Robots Rewired . | . . . . . . . . Allies Hacked . | . . . . . . . . Hacks Repelled . | . . . . . . . . Allies | -11 -10 -10 -10 -9 -8 -7 -6 -------- Run | Yrd Mat Min Exi Min Mat Fac Fac Total Allies 9 | . . 3 . . 2 . 4 Largest Group 3 | . . 3 2 2 1 . 3 Highest-Rated Group 93 | . . 40 24 24 90 . 93 Highest-Rated Ally 90 | . . 16 16 16 90 . 90 Total Orders . | . . . . . . . . Ally Attacks 37 | . . . . 12 6 . 19 Total Damage 650 | . . . . 112 184 . 354 Kills 4 | . . . . 1 1 . 2 Allies Corrupted . | . . . . . . . . Allies Melted 1 | . . . . . . . 1 Field Lobotomies 3 | . . . . . 2 . 1 Intel | -11 -10 -10 -10 -9 -8 -7 -6 ------- Run | Yrd Mat Min Exi Min Mat Fac Fac Robot Analysis Total . | . . . . . . . . Derelict Logs Recovered 2 | . . . . 2 . . . Drone Launches . | . . . . . . . . Drone Recoveries . | . . . . . . . . Exploration | -11 -10 -10 -10 -9 -8 -7 -6 ------------- Run | Yrd Mat Min Exi Min Mat Fac Fac Turns Passed 8902 | 60 463 930 371 724 3651 1825 878 Spaces Moved 5117 | 39 218 467 231 440 1140 1231 1351 Core 26 | 11 . . . . 3 . 12 Treads 2183 | 28 218 467 231 440 799 . . Legs 167 | . . . . . 167 . . Wheels . | . . . . . . . . Hover . | . . . . . . . . Flight 2741 | . . . . . 171 1231 1339 Fastest Speed 25 | 50 160 160 160 160 109 26 25 Average Speed 96 | 131 160 160 160 160 162 27 37 Slowest Speed 550 | 160 160 160 160 160 550 182 165 Overloaded Moves . | . . . . . . . . Propulsion Burnouts . | . . . . . . . . Robots Hopped 5 | . . . . . . . 5 Cave-ins Triggered . | . . . . . . . . Exploration Rate (%) 48 | 3 38 77 60 92 68 22 31 Regions Visited 7 Branch Regions 3 Pre-discovered Areas . | . . . . . . . . Known Exits Taken . | . . . . . . . . Unknown Exits Taken 7 | 1 1 1 1 1 1 1 . Scrap Searched 5 | . . 1 . 4 . . . Spaces Dug 2 | . . . . . . 2 . Terrain Destroyed 113 | . . . . . 64 2 47 Melee 2 | . . . . . . 2 . Projectile . | . . . . . . . . AOE 111 | . . . . . 64 . 47 Terrain Rammed . | . . . . . . . . Walls Destroyed . | . . . . . . . . Machines Disabled . | . . . . . . . . Actions | -11 -10 -10 -10 -9 -8 -7 -6 --------- Run | Yrd Mat Min Exi Min Mat Fac Fac Total 8511 | 45 297 565 233 453 2648 2600 1670 Wait 2746 | . 46 29 . 5 1223 1256 187 Move 5100 | 38 217 466 230 439 1139 1230 1341 Hop 5 | . . . . . . . 5 Pick Up 40 | 1 4 4 1 2 15 12 1 Fast Attach 50 | 6 3 . . . 19 8 14 Attach 49 | . . 5 1 . 22 8 13 Detach 42 | . 2 . 1 . 18 5 16 Swap 14 | . 1 1 . . 4 7 1 Drop 43 | . 2 . . . 21 10 10 Fire 198 | . 19 49 . 3 99 . 28 Melee 153 | . . . . . 80 64 9 Ram 4 | . . . . . 1 . 3 Kick . | . . . . . . . . Crush 25 | . 3 11 . 4 7 . . Escape Stasis 42 | . . . . . . . 42 Rewire . | . . . . . . . . Trap . | . . . . . . . . Miscellaneous . | . . . . . . . . Route ------- -11/Scrapyard -10/Materials (discovered 2 exits: [*Mat] / [*Min]) -10/Mines (discovered 4 exits: [*Mat x2] / *Exi / [Sub]) -10/Exiles -9/Mines (discovered 2 exits: *Mat x2) -8/Materials -7/Factory (discovered 2 exits: *Fac / [*Low]) -6/Factory (discovered 2 exits: Low x2) History --------- Turn | Location | Event 36 | -11/Scrapyard | Discovered new exit (range 13) 61 | -11/Scrapyard | Entered Materials 310 | -10/Materials | Build established: Mutant 421 | -10/Materials | Discovered new exit (range 10) 473 | -10/Materials | Discovered new exit (range 9) 524 | -10/Materials | Entered Mines 576 | -10/Mines | Assembled infested the area 594 | -10/Mines | YI-UF0 nonchalantly dropped a Grenade Launcher on the ground 637 | -10/Mines | Discovered new exit (range 16) 763 | -10/Mines | Discovered new exit (range 5) 822 | -10/Mines | Discovered new exit (range 8) 1332 | -10/Mines | Assisted by bots powering up and referring to "LRC-V3" 1398 | -10/Mines | Found a hidden stash of uninstalled traps 1446 | -10/Mines | Deemed a non-threat by the Exiles lab entrance 1446 | -10/Mines | Discovered new exit (range 6) 1454 | -10/Mines | Entered Exiles 1454 | -10/Exiles | Accompanied by 2 allies 1493 | -10/Exiles | Met 8R-AWN 1520 | -10/Exiles | Met EX-HEX 1568 | -10/Exiles | Met EX-BIN 1594 | -10/Exiles | Aligned with FarCom system 1595 | -10/Exiles | Given EX-Vault access code 1635 | -10/Exiles | Opened EX-Vault 1667 | -10/Exiles | Found Field Lobotomy Kit 1702 | -10/Exiles | Warned to stay clear of 0b10 Research branches 1753 | -10/Exiles | Met EX-DEC 1806 | -10/Exiles | Discovered new exit (range 14) 1825 | -10/Exiles | Left Exiles lab with Field Lobotomy Kit 1825 | -10/Exiles | Entered Mines 1825 | -9/Mines | Accompanied by 2 allies 1844 | -9/Mines | Met a Derelict bent on vengeance 1896 | -9/Mines | Discovered new exit (range 7) 2047 | -9/Mines | Learned location of 1 exit from Lower Caves 2137 | -9/Mines | Learned Materials security intel 2192 | -9/Mines | Discovered new exit (range 4) 2549 | -9/Mines | Entered Materials 2549 | -8/Materials | Evolved 4 slots: Propulsion x1, Utility x3 2917 | -8/Materials | Assimilated H-61 Shepherd with FLK Orb 3005 | -8/Materials | Assimilated X-62 Marksman with FLK Orb 3397 | -8/Materials | Build established: Scavenger-Mutant 3462 | -8/Materials | Garrison activated, responded to threat 3768 | -8/Materials | Garrison activated, responded to threat 5478 | -8/Materials | Destroyed 7 combat bots 5617 | -8/Materials | Discovered new exit (range 15) 5683 | -8/Materials | Repaired Lgt. Treads 5749 | -8/Materials | First assault squad dispatched 5785 | -8/Materials | Build established: Mutant 6075 | -8/Materials | Sterilization system engaged 6075 | -8/Materials | Non-combat units ordered to evacuate 6175 | -8/Materials | Combat units ordered to evacuate 6183 | -8/Materials | Core integrity fell below 50% 6200 | -8/Materials | Entered Factory 6200 | -7/Factory | Evolved 2 slots: Propulsion x1, Utility x1 6508 | -7/Factory | Build established: Sprinter 6963 | -7/Factory | Discovered new exit (range 6) 7167 | -7/Factory | Fabricated Hacking Suite (x1) 7348 | -7/Factory | Fabricated Hacking Suite (x1) 7482 | -7/Factory | Build established: Hacker-Sprinter 7858 | -7/Factory | Repaired Lgt. Deuterium Engine 7933 | -7/Factory | Discovered new exit (range 13) 8025 | -7/Factory | Entered another Factory area 8025 | -6/Factory | Evolved 2 slots: Propulsion x1, Utility x1 8083 | -6/Factory | Identified exit to Lower Caves 8150 | -6/Factory | Identified exit to DSF 8176 | -6/Factory | Assimilated H-61 Shepherd with FLK Orb 8387 | -6/Factory | Lost 4 parts (3n1u) 8563 | -6/Factory | Cargo convoy interrupted 8631 | -6/Factory | Allied Derelicts emerged from ambush trap array 8726 | -6/Factory | Core integrity fell below 50% 8787 | -6/Factory | Lost 7 parts (1p1n4u1w) 8858 | -6/Factory | Core integrity fell below 20% 8903 | -6/Factory | Destroyed by H-61 Shepherd with Heavy Assault Cannon Last Messages --------------- Door malfunctions. Weight Redist. System destroyed. Slammed into Y-54 Guardian. Imp. Proton Missile Launcher destroyed. Y-54 Guardian misfires. U-05 Engineer lays Concrete. Hacking Suite destroyed. Cesium-ion Thruster destroyed. U-05 Engineer lays Concrete. Fission Core destroyed. System corrupted: Imp. Cesium-ion Thruster rejected. Hacking Suite destroyed. Force Field destroyed. System corrupted: Component data lost. Acquired Lgt. Deuterium Engine. Dropped EM Disruption Field. ALERT: Suspicious intruders detected, dispatching Cutter reinforcements to area. O-16 Technician: "IFF HANDSHAKE FAILED. SECURING TERMINAL." ALERT: Hostiles spotted, dispatching reinforcements to Terminal F010. Xenon Bombardment Thruster destroyed. Map ----- +----------------------------------------------------+ | #???????# #?????????# # #?????????? | | #???????# #??????#### + #?????????? | | #???????# #??????# # #?????????? | | #???????? ???????#+## # #?????????? | | #???????? ??????????# #? #?????????? | | +???????? ??????????# #? #?????????? | | #???????? ??????????# #?? #?????????? | | #???????? ??????????# #?? #?????????? | | #???????? ??????H???g #??? #?????????? | | #???????? ?????????g# #??? ??????????? | | #???????????????????# #????########??????????? | | #??????????+????????# #??????????????????????? | | #????????? #????????# #??????????????????????? | | ######### ########## #??????????????????????? | | % ##############?????????? | | #?????######## # #?????????? | | #????????????# # ]!! !??????????? | | / ??????# %# ]! ???????????? | | ### #### ! ?????# # ]! """????????????? | | ??# #????? ?????# # """????????????? | | ??# #??????? ???????# # """????????????? | | ??# #???????????????+ ; """"???????????? | | ??#=####????????????# # """"???????????? | | ?# +????????????#H + """"???????????? | | ?# ####????????????# # #?????????? | | #?# #???????????????# @# #?????????? | | ??# #???????????????# # #?????????? | | ??# #???????????????# %##############?????????? | | ??# #???????????????# #??????????????????????? | | ??# #???????????????# +??????????????????????? | | ??# #???????????????# #??????????????????????? | | ??# #???????????????# #??????????????????????? | | ### ###????########## #??????????????????????? | | # #### #??????????????????????? | | # #????## ???????????????????????? | | #?????# ???????????????????????? | | # ! #?????# ???????????????????????? | | # #######+#?????# ???????????????????????? | | ### ###?????????????# ???????????????????????? | | ??# #???????????????? ???????????????????????? | | ??# #?????????????????? ???????????????????????? | | ??# #????????????????????????????????????????????? | | ??# #????????????????????????????????????????????? | | ??# #????????????????????????????????????????????? | | ??# #????????????????????????????????????????????? | | ??# #????????????????????????????????????????????? | | ###/###??????????????????????????????????????????? | | #??????????????????????????????????????????? | | """ #??????????????????????????????????????????? | | """" #??????????????????????????????????????????? | +----------------------------------------------------+ Best States ------------- Heat Dissipation 37 Energy Generation 19 Energy Capacity 500 Matter Stores 300 Matter Capacity 300 Sight Range 16 Terrain Scan Density 10 ECM Strength 2 Additional Mass Support 6 Armor Coverage 600 Weapon Shielding 33 Melee Speed Boost 20 Evasion (%) 65 Targeting Accuracy 16 Recoil Reduction 3 Offensive Hacking 40 Item Schematics ----------------- Structural Scanner | -8/Materials | Scanalyzed Hacking Suite | -8/Materials | Hacked Robot Schematics ------------------ None Fabricated ------------ Hacking Suite | x1 | -7/Factory Hacking Suite | x1 | -7/Factory Alien Tech Used ----------------- None Achievements -------------- Batter Up Challenges ------------ None Game ------ Seed LayeredTargetCasing Manual? 0 Play Time 01:25:20 Cumulative 17.1 hours Start 2024.08.22 @ 20:38:53 End 2024.08.22 @ 22:04:05 Sessions 1 Manual Loads 0 Difficulty Rogue Special Mode None Game No. 18 Rogue 6 Adventurer 12 Explorer 0 Win Type - Total 0 Types 0/0/0/0/0/0/0/0/0 Lore% 6 Gallery% 15 Achievement% 15 Wizard Run 0 Options --------- Layout 0 ASCII 0 Keyboard 1 Movement Numpad Keybinds 0 Fullscreen 2 Font 24/Smallcaps Map View 113x50 Zoom Use 0% Tactical HUD 0 Map Filters NONE Filters NONE Steam 1 RUN: 2ad9cb7b-d7ab-430f-8354-a4c293376dab